bitfinex/quotes_ETHUSD_20240710
["timestamp","ask_amount","ask_price","bid_price","bid_amount"]
[1720610775791,2.4973,3105.0,3103.9,2.312]
[1720610775992,0.3365944,3105.3,3104.1,2.312]
[1720610776143,0.3365944,3105.3,3104.0,0.30955458]
[1720610776144,2.3051,3105.9,3104.2,2.37641504]
[1720610776343,2.3051,3105.9,3103.7,2.59]
[1720610776344,0.19936995,3105.8,3104.4,2.312]
[1720610776542,0.33662275,3105.3,3104.4,2.312]
[1720610776780,2.46436193,3105.9,3104.5,0.07490434]
[1720610776976,0.19932579,3105.8,3104.6,0.23869043]
[1720610777200,0.33663594,3105.5,3104.6,0.23869043]
[1720610777544,0.33663594,3105.5,3104.7,0.07489899]
[1720610777972,0.33663594,3105.5,3104.8,2.3194]
[1720610778509,0.33663594,3105.5,3104.9,0.07489899]
[1720610779301,3.0,3105.8,3104.9,0.07489899]
[1720610779513,0.336645,3105.5,3104.9,0.07489899]
[1720610782104,0.85589754,3105.6,3104.9,0.07489899]
[1720610782319,0.5053614,3105.6,3104.9,0.07489899]
[1720610782604,0.5053614,3105.6,3104.9,0.13930813]
[1720610784292,0.5053614,3105.6,3105.0,2.272]
[1720610784498,0.5053614,3105.6,3105.1,0.06440039]
[1720610784875,0.5053614,3105.6,3105.2,0.07459928]
[1720610785077,0.5053614,3105.6,3105.2,0.38009922]
[1720610785273,0.5053614,3105.6,3105.2,0.31569925]
[1720610788587,0.33700294,3105.9,3105.2,0.31569925]
[1720610789091,0.50519625,3106.0,3105.2,0.31569925]
[1720610789727,0.50519625,3106.0,3105.2,0.38009475]
[1720610790215,0.50519625,3106.0,3105.2,0.31569925]
[1720610791220,0.33699674,3105.9,3105.2,0.31569925]
[1720610792017,0.33699674,3105.9,3105.2,0.38009476]
[1720610792222,0.33699674,3105.9,3105.3,2.39489551]
[1720610792434,0.33699674,3105.9,3105.4,0.27105948]
[1720610792645,0.33699674,3105.9,3105.5,2.3305]
[1720610792805,5.0733,3107.3,3105.5,2.3305]
[1720610793132,0.50512403,3106.7,3105.5,2.3305]
[1720610793500,0.50512403,3106.7,3105.6,0.07424082]
[1720610793809,0.50512403,3106.7,3105.7,0.24047408]
[1720610794634,0.50512403,3106.7,3105.8,0.07424082]
[1720610795936,0.50512403,3106.7,3105.8,0.01728622]
[1720610796232,2.89942403,3106.7,3105.8,0.07234234]
[1720610796432,0.2899424,3106.6,3105.8,0.07234234]
[1720610796614,3.8399424,3106.6,3105.8,0.07234234]
[1720610796803,0.8399424,3106.6,3105.5,2.3305]
[1720610797436,0.8399424,3106.6,3105.6,0.07234234]
[1720610799858,0.2899424,3106.6,3105.6,0.07234234]
[1720610800060,0.2899424,3106.6,3105.7,0.24028423]
[1720610800219,0.50512403,3106.7,3105.8,2.4869]
[1720610800741,0.50512403,3106.7,3105.9,0.07234234]
[1720610804625,0.55,3106.6,3105.9,0.07234234]
[1720610805552,0.50512403,3106.7,3105.9,0.07234234]
[1720610814338,0.55,3106.6,3105.9,0.07234234]
[1720610814740,0.55,3106.6,3105.8,2.4869]
[1720610814950,0.55,3106.6,3106.0,0.07225944]
[1720610815146,0.55,3106.6,3105.8,2.4869]
[1720610815581,0.55,3106.6,3105.9,0.07225944]
[1720610815738,0.55,3106.6,3105.8,2.4869]
[1720610816136,0.55,3106.6,3105.9,0.07225944]
[1720610816771,0.55,3106.6,3105.8,2.4869]
[1720610817134,0.55,3106.6,3105.9,0.07225944]
[1720610817579,0.55,3106.6,3105.8,2.4869]
[1720610817944,0.55,3106.6,3105.9,0.07235304]
[1720610818365,0.55,3106.6,3105.8,2.4869]
[1720610818633,0.55,3106.6,3106.0,0.07235304]
[1720610818774,0.55,3106.6,3105.8,2.4869]
[1720610819276,0.4055124,3106.5,3105.8,2.4869]
[1720610820155,0.60472602,3106.5,3105.8,2.4869]
[1720610820351,0.4055124,3106.5,3105.8,2.4869]
[1720610820564,0.60474165,3106.5,3105.8,2.4869]
[1720610820971,0.4055124,3106.5,3105.8,2.4869]
[1720610821275,0.60472828,3106.5,3105.8,2.4869]
[1720610822361,0.4055124,3106.5,3105.8,2.4869]
[1720610822571,0.60471563,3106.5,3105.8,2.4869]
[1720610823565,0.19920323,3106.5,3105.8,2.4869]
[1720610824691,1.077,3106.0,3105.3,2.4451]
[1720610824879,1.077,3105.7,3105.3,2.4451]
[1720610825084,1.077,3105.5,3105.4,0.07233699]
[1720610825459,1.82657249,3105.5,3105.4,0.07233699]
[1720610825662,2.4513,3105.4,3104.4,2.3198]
[1720610825961,1.077,3104.6,3104.4,2.3198]
[1720610826459,3.0,3105.3,3104.4,2.3198]
[1720610826806,1.27664642,3105.2,3104.4,2.3198]
[1720610827099,3.0,3105.7,3103.6,2.3297]
[1720610827312,3.10100421,3106.0,3104.6,2.3297]
[1720610827313,1.077,3105.5,3104.6,2.3297]
[1720610828003,1.077,3105.3,3104.6,2.3297]
[1720610828498,1.077,3105.5,3104.6,2.3297]
[1720610828801,0.38729,3105.8,3104.6,2.3297]
[1720610829005,0.58683465,3105.8,3104.6,2.3297]
[1720610829307,0.19954762,3105.7,3104.8,2.4869]
[1720610829486,0.19954903,3105.7,3104.8,2.4869]
[1720610829687,0.38729,3105.8,3104.8,2.4869]
[1720610830115,0.19954903,3105.9,3104.8,2.73559]
[1720610830417,0.19941211,3106.1,3105.0,2.3242]
[1720610830737,0.19941211,3106.4,3105.0,2.3242]
[1720610831884,3.19941211,3106.4,3105.0,2.3242]
[1720610832100,1.07795332,3106.3,3105.0,2.581489]
[1720610832300,0.19941211,3106.2,3105.0,2.581489]
[1720610832501,0.87854121,3106.3,3105.0,2.581489]
[1720610832699,0.87854121,3106.3,3105.1,0.07280782]
[1720610832700,0.1992335,3106.2,3105.1,0.07280782]
[1720610833025,0.1992335,3106.2,3105.2,2.3926]
[1720610833239,0.1992335,3106.2,3105.4,2.4209]
[1720610833384,0.1992335,3106.6,3105.4,2.4209]
[1720610833695,0.55,3106.5,3105.5,0.07270616]
[1720610834019,0.1992335,3106.4,3105.5,0.07270616]
[1720610834243,2.7852335,3106.4,3105.5,0.07270616]
[1720610834521,2.586,3106.0,3105.5,0.07270616]
[1720610834686,3.1992335,3105.9,3105.4,2.4209]
[1720610834881,0.1992335,3105.8,3104.4,2.3877]
[1720610835315,0.1992335,3105.8,3104.6,2.3877]
[1720610835827,3.0,3105.9,3104.6,2.3877]
[1720610835983,0.75789892,3105.8,3104.8,2.4024]
[1720610836297,0.5586,3105.8,3104.9,0.07272756]
[1720610836722,0.19939309,3105.7,3104.9,0.07272756]
[1720610837221,0.5586,3105.8,3104.9,0.07272756]
[1720610838230,3.0,3105.9,3105.0,2.4185]
[1720610838419,0.19941978,3105.8,3105.0,2.4185]
[1720610838766,0.19941978,3105.8,3105.1,0.07262051]
[1720610839364,0.1993908,3105.8,3105.1,0.13702512]
[1720610839570,0.19936863,3106.2,3105.2,2.3667]
[1720610839725,1.00037032,3106.2,3105.2,2.3667]
[1720610839925,0.19933032,3106.1,3105.2,2.3667]
[1720610841730,2.586,3106.0,3105.2,2.3667]
[1720610841929,2.2565,3105.8,3104.5,2.2503]
[1720610842158,0.74933032,3105.7,3105.3,0.07260981]
[1720610842472,0.19933032,3105.6,3104.5,2.2503]
[1720610842657,0.19947782,3105.6,3104.5,2.2503]
[1720610842830,0.19947782,3105.6,3104.6,0.07260981]
[1720610843038,0.37494778,3105.5,3104.6,0.07260981]
[1720610843433,0.37494778,3105.5,3104.7,2.2503]
[1720610844054,0.19944729,3105.6,3104.8,0.07260981]
[1720610844230,0.55,3105.7,3104.8,0.07260981]
[1720610844435,0.55,3105.8,3104.8,0.07260981]
[1720610844632,0.19944713,3105.7,3104.8,0.07260981]
[1720610845970,0.19950848,3105.7,3104.8,0.07260981]
[1720610846338,0.19950848,3105.7,3104.7,2.2503]
[1720610846339,2.405,3105.6,3104.7,2.2503]
[1720610846546,1.00995933,3105.5,3104.7,2.2503]
[1720610846749,0.19950848,3105.4,3104.7,2.2503]
[1720610847148,3.81045085,3105.5,3104.7,2.2503]
[1720610847368,0.19954856,3105.4,3104.7,2.2503]
[1720610849532,0.19952165,3105.4,3104.7,2.2503]
[1720610849763,0.40099725,3105.3,3104.7,2.2503]
[1720610850173,2.2837,3105.2,3104.0,2.4658]
[1720610850336,2.2837,3105.2,3103.7,2.4658]
[1720610850337,2.586,3104.8,3103.7,2.4658]
[1720610850532,2.586,3104.8,3104.1,0.0654727]
[1720610850533,3.29210892,3104.7,3104.1,0.0654727]
[1720610850775,2.586,3104.4,3103.7,2.4658]
[1720610850981,0.19980892,3104.3,3103.4,0.9701]
[1720610851150,3.19980892,3104.3,3103.8,0.0654727]
[1720610851487,0.57858089,3104.2,3103.4,0.9701]
[1720610851647,0.57858089,3104.2,3103.9,0.0654727]
[1720610851836,0.57858089,3104.2,3103.4,0.9701]
[1720610852036,0.57858089,3104.2,3104.0,0.0654727]
[1720610852251,0.57858089,3104.2,3103.4,0.9701]
[1720610852487,3.0,3104.3,3104.1,0.0654727]
[1720610852678,3.0,3104.3,3103.4,0.9701]
[1720610852972,3.0,3104.3,3103.5,0.0654727]
[1720610853335,0.50548787,3104.2,3103.5,0.0654727]
[1720610853535,0.50548787,3104.2,3103.6,2.4391]
[1720610853750,0.50548787,3104.2,3103.7,0.25045727]
[1720610853949,0.50548787,3104.2,3103.6,2.4391]
[1720610854265,0.50548787,3104.2,3103.8,0.0654727]
[1720610854464,0.50548787,3104.2,3103.6,2.4391]
[1720610854702,0.50548787,3104.2,3103.9,0.0654727]
[1720610854996,0.50548787,3104.2,3104.0,0.0654727]
[1720610855358,0.50548787,3104.2,3103.6,2.4391]
[1720610855568,0.50548787,3104.2,3104.1,0.0654727]
[1720610855889,0.50548787,3104.2,3103.6,2.4391]
[1720610856096,0.50548787,3104.2,3104.1,0.0654727]
[1720610856343,0.50548787,3104.2,3103.6,2.4391]
[1720610856692,0.50548787,3104.2,3103.7,0.0654727]
[1720610856900,0.85603666,3104.2,3103.6,2.4391]
[1720610857107,0.85603666,3104.2,3103.7,0.0654727]
[1720610857321,0.85603666,3104.2,3103.6,2.4391]
[1720610857523,0.85603666,3104.2,3103.7,0.0654727]
[1720610857694,0.85603666,3104.2,3103.6,2.4391]
[1720610858038,0.85603666,3104.2,3103.7,0.0654727]
[1720610858329,0.85603666,3104.2,3103.6,2.4391]
[1720610858642,0.85603666,3104.2,3103.8,0.0654727]
[1720610858817,0.85603666,3104.2,3103.6,2.4391]
[1720610859013,0.50548787,3104.2,3103.9,0.0654727]
[1720610859219,0.50548787,3104.2,3103.6,2.4391]
[1720610859415,0.50548787,3104.2,3104.0,0.0654727]
[1720610859743,0.50548787,3104.2,3103.3,2.3394]
[1720610860222,0.50548787,3104.2,3103.4,0.0654727]
[1720610861723,0.50548787,3104.2,3103.4,0.30595997]
[1720610862243,2.88508787,3104.2,3103.4,0.0654727]
[1720610862739,3.0,3104.1,3103.4,0.0654727]
[1720610863253,3.0,3104.1,3103.0,0.9701]
[1720610863542,3.0,3104.1,3102.9,2.3732]
[1720610863543,0.55,3104.0,3103.1,0.0654727]
[1720610863881,0.355,3103.9,3103.1,0.0654727]
[1720610863998,0.355,3103.9,3102.9,2.3732]
[1720610864197,0.355,3103.9,3103.2,0.065785]
[1720610864397,0.355,3103.9,3102.9,2.3732]
[1720610865040,0.355,3103.9,3103.0,0.065785]
[1720610865198,2.4423,3103.8,3103.0,0.065785]
[1720610865398,0.27973,3103.7,3103.0,0.065785]
[1720610865598,3.27973,3103.7,3102.6,2.2942]
[1720610865800,3.27973,3103.7,3103.1,0.065785]
[1720610866119,3.27973,3103.7,3103.2,0.06616408]
[1720610866328,3.27973,3103.7,3102.6,2.2942]
[1720610866647,0.572203,3103.6,3102.7,0.0661721]
[1720610866809,3.27973,3103.7,3102.7,0.0661721]
[1720610867423,3.0,3103.7,3102.8,2.3899]
[1720610867639,3.0,3104.1,3102.8,2.3899]
[1720610868024,2.4429,3104.2,3102.9,0.0661721]
[1720610868332,2.4429,3104.2,3103.0,2.3899]
[1720610868838,2.4429,3104.2,3103.1,0.06612135]
[1720610869054,2.68719,3104.2,3103.1,0.31172349]
[1720610869219,3.0,3104.1,3103.1,0.31172349]
[1720610880770,1.079,3104.0,3103.1,0.31172349]
[1720610884388,1.079,3104.0,3103.1,0.06612135]
[1720610884558,1.079,3103.8,3103.1,0.06612135]
[1720610885404,1.079,3103.6,3103.1,0.06612135]
[1720610885561,1.079,3103.6,3103.0,2.3899]
[1720610885756,1.079,3103.6,3103.2,0.0639181]
[1720610886002,1.079,3103.6,3103.0,2.3899]
[1720610886184,1.079,3103.6,3103.3,0.0639181]
[1720610886388,1.079,3103.6,3103.0,2.62889]
[1720610886698,1.079,3103.6,3103.4,0.0639181]
[1720610886878,1.079,3103.6,3103.0,2.3899]
[1720610887076,1.079,3103.6,3103.5,0.0617875]
[1720610887272,1.079,3103.6,3103.0,2.3899]
[1720610887756,1.079,3103.6,3103.1,0.0617875]
[1720610887957,0.55,3103.5,3103.0,2.3899]
[1720610888570,1.079,3103.4,3103.1,0.05971539]
[1720610888779,0.55,3103.3,3103.1,0.05971539]
[1720610889101,0.55,3103.3,3103.2,0.05981039]
[1720610889402,1.079,3103.3,3102.6,0.9701]
[1720610889559,1.079,3102.9,3102.6,0.9701]
[1720610889762,1.079,3102.9,3101.9,1.079]
[1720610889987,1.079,3102.9,3101.8,0.9701]
[1720610889988,1.079,3102.7,3102.2,2.2994]
[1720610890299,0.55,3102.6,3102.2,2.2994]
[1720610891103,3.0,3103.0,3102.2,2.2994]
[1720610891104,0.55,3102.9,3102.2,2.2994]
[1720610891312,0.6141,3102.8,3102.2,2.2994]
[1720610891612,0.55,3102.7,3102.2,2.2994]
[1720610892322,0.55,3102.7,3101.9,2.299]
[1720610893666,0.55,3102.7,3102.0,0.05787549]
[1720610896244,5.591,3103.0,3102.0,0.12234552]
[1720610896245,3.0,3103.0,3102.0,0.12234552]
[1720610896440,3.0,3103.0,3102.1,0.24213455]
[1720610896647,2.3342,3103.1,3102.1,0.30027049]
[1720610897303,3.0,3103.3,3102.2,2.3186]
[1720610897819,2.3295,3103.4,3102.2,2.3186]
[1720610897820,4.9205,3103.4,3102.3,0.05810404]
[1720610898020,4.9205,3103.4,3102.2,2.3186]
[1720610898021,3.70887156,3103.3,3102.2,2.3186]
[1720610898332,3.50834,3103.3,3102.2,2.3186]
[1720610898740,2.3678,3103.1,3101.5,2.3473]
[1720610899037,0.55,3103.0,3101.6,0.05810404]
[1720610899539,2.3578,3102.9,3101.6,0.05810404]
[1720610899832,1.39988,3102.8,3101.7,2.353]
[1720610899998,4.39988,3102.8,3101.7,2.353]
[1720610900198,4.39988,3102.8,3101.7,2.41125554]
[1720610901036,2.591,3102.6,3101.7,0.05825554]
[1720610901219,2.3578,3102.5,3101.3,0.1128921]
[1720610901532,0.55,3102.4,3101.8,0.05825554]
[1720610901697,0.55,3102.4,3101.3,0.1128921]
[1720610901897,3.55,3102.4,3101.3,0.1128921]
[1720610902199,3.55,3102.4,3101.4,0.05825554]
[1720610902200,4.69988,3102.4,3101.4,0.05825554]
[1720610902640,3.55,3102.4,3101.5,2.45407727]
[1720610902842,0.55,3102.4,3101.5,2.51937667]
[1720610903147,0.55,3102.7,3101.6,0.05825554]
[1720610903314,3.55,3102.7,3101.7,0.06446917]
[1720610903501,3.55,3102.7,3101.6,0.05825554]
[1720610903706,4.13164,3102.7,3101.8,0.05835656]
[1720610904046,3.0,3102.7,3101.9,0.05835656]
[1720610904346,2.2664,3102.8,3101.7,0.25131549]
[1720610904807,2.2664,3102.8,3101.8,0.0583539]
[1720610905614,0.55,3102.7,3101.8,0.0583539]
[1720610905818,3.55,3102.7,3101.8,0.1236533]
[1720610906755,4.13164,3102.7,3101.8,0.1236533]
[1720610907742,3.55,3102.7,3101.8,0.1236533]
[1720610908670,3.55,3102.7,3101.9,2.388]
[1720610908870,0.55,3102.7,3102.0,0.06446558]
[1720610909081,0.55,3102.9,3102.0,0.06446558]
[1720610909248,0.55,3102.9,3102.1,0.05829807]
[1720610909968,0.55,3102.9,3102.1,0.12359747]
[1720610911591,0.55,3102.9,3102.2,0.06446559]
[1720610911964,0.55,3102.9,3102.2,0.12976499]
[1720610912167,0.55,3102.9,3102.3,0.05829807]
[1720610912979,0.55,3102.9,3102.3,0.12359747]
[1720610915375,0.55,3102.7,3102.3,0.12359747]
[1720610917846,3.0,3103.0,3102.4,2.4831]
[1720610918177,2.2929,3103.4,3102.5,0.26066975]
[1720610918178,1.08,3103.2,3102.5,0.26066975]
[1720610918360,1.08,3103.2,3102.4,2.6058779]
[1720610918563,1.08,3103.2,3102.6,0.05827146]
[1720610918750,1.08,3103.2,3102.4,2.4831]
[1720610918950,1.08,3103.2,3102.7,0.05827146]
[1720610919175,1.08,3103.2,3102.4,2.5483994]
[1720610919382,1.08,3103.2,3102.8,0.05827146]
[1720610919674,1.08,3103.2,3102.4,2.5483994]
[1720610919675,1.08,3103.2,3102.9,0.05827146]
[1720610919876,0.55,3103.1,3102.4,2.5483994]
[1720610920050,0.55,3103.1,3103.0,0.05821299]
[1720610920249,1.08,3103.2,3102.6,0.0652994]
[1720610920446,1.08,3103.2,3103.0,0.05821299]
[1720610920755,1.08,3103.2,3102.6,0.0652994]
[1720610920952,1.08,3103.2,3103.1,0.0581997]
[1720610921151,1.63,3103.2,3102.6,0.0652994]
[1720610921358,1.63,3103.2,3103.1,0.0581997]
[1720610921575,1.793,3103.2,3102.6,0.0652994]
[1720610921888,1.63,3103.2,3102.6,0.0652994]
[1720610922096,1.63,3103.2,3102.7,0.0581997]
[1720610923990,0.55,3103.2,3102.7,0.0581997]
[1720610924200,0.55,3103.3,3102.7,0.0581997]
[1720610924408,1.08,3103.2,3102.7,0.0581997]
[1720610926397,0.55,3103.3,3102.7,0.0581997]
[1720610929215,0.55,3103.3,3102.7,1.1381997]
[1720610929420,0.50562199,3103.5,3102.9,1.08]
[1720610929575,0.50562199,3103.5,3103.0,0.34674509]
[1720610929771,1.08,3104.0,3103.1,0.06444493]
[1720610929983,0.20051537,3103.9,3103.1,0.06444493]
[1720610930204,0.50554903,3103.9,3103.1,0.06444493]
[1720610930370,0.70610536,3103.9,3103.2,0.0580934]
[1720610930567,0.68415957,3103.9,3103.2,0.0580934]
[1720610930776,0.55,3103.8,3103.2,0.0580934]
[1720610933303,1.63,3103.8,3103.2,0.0580934]
[1720610933508,1.63,3103.8,3102.8,2.323]
[1720610933509,1.08,3103.6,3102.8,2.323]
[1720610933705,0.55,3103.5,3103.3,0.05796852]
[1720610933905,0.55,3103.5,3102.8,2.323]
[1720610934205,0.55,3103.5,3103.4,0.05796852]
[1720610934391,0.55,3103.5,3102.8,2.323]
[1720610934702,0.55,3103.5,3102.9,0.05797117]
[1720610935273,1.08,3103.4,3102.9,0.05797117]
[1720610936286,0.55,3103.5,3102.9,0.05797117]
[1720610936510,0.55,3103.5,3102.8,2.323]
[1720610936712,0.55,3103.5,3102.8,2.66982994]
[1720610937316,1.08,3103.4,3102.9,0.05790473]
[1720610937516,0.55,3103.3,3102.9,0.05790473]
[1720610940410,1.08,3103.4,3102.9,0.05790473]
[1720610940793,1.08,3103.6,3102.9,0.05790473]
[1720610941120,0.55,3103.5,3102.8,2.323]
[1720610941326,0.55,3103.5,3102.8,2.66982994]
[1720610941524,0.55,3103.5,3102.8,2.323]
[1720610941525,1.08,3103.4,3102.8,2.323]
[1720610941727,1.08,3103.4,3102.6,0.0652994]
[1720610941728,1.08,3103.0,3102.9,0.05793661]
[1720610941928,3.66863172,3103.0,3102.9,0.05793661]
[1720610942090,7.21863172,3103.0,3102.9,0.05793661]
[1720610942294,7.21863172,3103.0,3102.6,0.0652994]
[1720610942597,1.08,3102.7,3102.6,0.0652994]
[1720610942858,1.83103172,3102.7,3102.6,0.0652994]
[1720610943302,1.83107899,3102.7,3102.6,0.0652994]
[1720610944540,0.75107899,3102.7,3102.6,0.0652994]
[1720610945972,3.21587899,3102.7,3102.6,0.0652994]
[1720610946267,6.90965321,3102.7,3102.6,0.0652994]
[1720610946437,6.90968724,3102.7,3102.6,0.0652994]
[1720610947723,9.50168724,3102.7,3102.6,0.0652994]
[1720610948479,2.4505,3102.6,3101.4,12.16]
[1720610948767,2.4505,3102.6,3101.3,3.2475]
[1720610948768,0.75111302,3102.5,3101.3,3.2475]
[1720610949077,2.4123,3102.3,3101.3,3.2475]
[1720610949274,0.75111302,3102.2,3101.3,0.9701]
[1720610949568,1.07665432,3102.1,3101.3,0.9701]
[1720610949731,0.55,3102.0,3101.3,0.9701]
[1720610949935,0.75129384,3102.0,3101.3,0.9701]
[1720610950174,2.4637,3101.9,3101.3,0.9701]
[1720610950408,0.55,3101.8,3101.0,2.3474]
[1720610950673,3.55,3101.8,3101.0,2.3474]
[1720610951277,4.15137,3101.8,3101.0,2.3474]
[1720610953652,4.15137,3101.8,3101.1,0.05606682]
[1720610953893,4.15137,3101.8,3101.0,2.3474]
[1720610954046,4.15137,3101.8,3101.2,0.05606682]
[1720610954263,4.15137,3101.8,3101.0,2.3474]
[1720610954499,0.920707,3101.7,3101.3,0.05606682]
[1720610954700,0.55,3101.6,3101.0,2.3474]
[1720610954898,0.55,3101.6,3101.4,0.05606682]
[1720610955197,0.55,3101.6,3101.0,2.3474]
[1720610955700,0.55,3101.6,3101.1,0.05606682]
[1720610955900,0.55,3101.6,3101.0,2.3474]
[1720610956076,0.55,3101.6,3101.2,0.05606682]
[1720610956271,0.55,3101.6,3101.0,2.3474]
[1720610956479,0.55,3101.6,3101.3,0.05606682]
[1720610956682,1.0572077,3101.6,3101.0,2.3474]
[1720610956889,0.55,3101.6,3101.4,0.05651776]
[1720610957081,0.55,3101.6,3101.0,2.3474]
[1720610957286,0.55,3101.6,3101.5,0.05651776]
[1720610957489,0.55,3101.6,3101.0,2.3474]
[1720610957674,0.55,3101.6,3101.5,0.05651776]
[1720610957885,0.9970707,3101.6,3101.0,2.3474]
[1720610958111,0.55,3101.6,3101.5,0.05651776]
[1720610958315,0.55,3101.6,3101.0,2.3474]
[1720610958523,0.55,3101.6,3101.5,0.05651776]
[1720610958701,0.55,3101.6,3101.0,2.3474]
[1720610958988,0.55,3101.6,3101.5,0.05651776]
[1720610959209,0.9970707,3101.6,3101.0,2.3474]
[1720610959534,0.55,3101.6,3101.1,0.05651776]
[1720610960034,0.55,3101.6,3101.0,2.3474]
[1720610960335,0.55,3101.6,3101.2,0.05651776]
[1720610960489,0.55,3101.6,3101.0,2.3474]
[1720610960690,0.55,3101.6,3101.3,0.05651776]
[1720610960937,0.9970707,3101.6,3101.0,2.3474]
[1720610961221,0.55,3101.6,3101.0,2.3474]
[1720610961429,0.55,3101.6,3101.1,0.05651776]
[1720610961791,0.55,3101.6,3101.0,2.3474]
[1720610962190,0.55,3101.6,3101.1,0.05651776]
[1720610962591,0.55,3101.6,3101.0,2.3474]
[1720610962930,0.55,3101.6,3101.1,0.05651776]
[1720610963133,0.9970707,3101.6,3101.1,0.05651776]
[1720610963434,0.9970707,3101.6,3100.7,2.2891]
[1720610963606,0.9970707,3101.6,3101.2,0.05651776]
[1720610963803,2.3923,3101.5,3100.5,0.9701]
[1720610963990,2.3923,3101.5,3100.4,2.4485]
[1720610963991,0.55,3101.4,3100.4,2.4485]
[1720610964190,0.55,3101.4,3100.6,0.05651776]
[1720610964416,0.55,3101.4,3100.5,0.24485]
[1720610964621,0.55,3101.4,3100.7,0.05651776]
[1720610964791,0.55,3101.4,3100.1,0.06449153]
[1720610964792,2.3722,3101.3,3100.1,2.257]
[1720610965000,0.84222,3101.2,3100.1,2.257]
[1720610965295,0.84222,3101.2,3100.2,0.05696602]
[1720610966232,3.84222,3101.2,3100.2,0.05696602]
[1720610967150,4.8878,3101.1,3100.2,0.05696602]
[1720610967297,3.55,3101.0,3100.2,0.05696602]
[1720610967648,2.2958,3100.8,3100.0,0.9701]
[1720610967790,2.2958,3100.8,3100.3,0.05705625]
[1720610967991,0.55,3100.7,3100.3,0.05705625]
[1720610968221,3.55,3100.7,3099.5,5.83440232]
[1720610968404,0.58458,3100.6,3099.5,5.83440232]
[1720610968602,0.55,3100.5,3099.6,0.05705625]
[1720610969464,0.55,3100.5,3099.6,0.12157219]
[1720610970071,3.0,3100.7,3099.6,0.12157219]
[1720610970233,0.55,3100.6,3099.6,0.05705625]
[1720610970439,3.55,3100.7,3099.7,0.58914586]
[1720610970637,3.0,3100.6,3099.7,0.64643306]
[1720610971133,3.55,3100.7,3099.7,0.64643306]
[1720610972637,1.081,3100.5,3099.7,0.64643306]
[1720610973577,0.55,3100.4,3099.7,0.64643306]
[1720610974232,3.0,3100.7,3099.9,2.4811]
[1720610974435,1.631,3100.6,3100.0,0.25456153]
[1720610974891,1.631,3100.6,3100.1,0.0572872]
[1720610975560,1.081,3100.4,3100.1,0.0572872]
[1720610975763,0.55,3100.6,3100.1,0.0572872]
[1720610976059,1.631,3100.6,3100.0,2.4087]
[1720610976262,1.631,3100.6,3100.2,0.0572872]
[1720610976459,1.631,3100.6,3100.0,2.4087]
[1720610976661,0.55,3100.6,3100.3,0.0572872]
[1720610976867,3.0,3100.7,3100.3,0.0572872]
[1720610977180,1.081,3100.9,3100.4,0.05725269]
[1720610977363,0.55,3100.8,3100.4,0.05725269]
[1720610977674,0.55,3100.8,3100.5,0.05725269]
[1720610977863,0.55,3100.8,3100.1,0.30537631]
[1720610978172,0.55,3100.8,3100.6,0.05725269]
[1720610978337,0.55,3100.8,3100.0,2.4087]
[1720610978538,0.55,3100.8,3100.7,0.05734825]
[1720610978761,0.55,3100.8,3100.1,0.06450561]
[1720610979069,0.55,3100.8,3100.2,0.05734029]
[1720610979368,0.55,3100.8,3100.2,0.31039488]
[1720610981537,3.0,3101.0,3100.3,0.06450328]
[1720610981734,2.4883,3101.5,3100.3,0.06450328]
[1720610981735,1.081,3101.3,3100.4,2.2745]
[1720610981991,1.081,3101.1,3100.4,2.33180843]
[1720610983138,0.55,3101.0,3100.4,2.33180843]
[1720610985266,0.55,3101.0,3100.4,2.56498927]
[1720610985903,1.081,3101.1,3100.4,2.56498927]
[1720610986062,0.55,3101.0,3100.4,2.33180843]
[1720610987759,0.55,3101.0,3100.4,0.05730843]
[1720610987760,1.081,3100.5,3100.4,0.05730843]
[1720610987969,1.631,3100.5,3100.4,0.05730843]
[1720610988264,1.631,3100.5,3099.9,0.9701]
[1720610988503,1.631,3100.5,3100.4,0.05681595]
[1720610988665,0.7131,3100.5,3099.8,2.3902]
[1720610988864,0.55,3100.4,3099.8,2.3902]
[1720610989399,0.55,3100.7,3099.8,2.3902]
[1720610990364,0.50604554,3100.6,3099.8,2.3902]
[1720610992108,0.55,3100.5,3099.8,2.3902]
[1720610992681,0.50604554,3100.6,3099.8,2.3902]
[1720610993305,0.50604554,3100.6,3099.8,2.62922]
[1720610996079,0.50604554,3100.6,3099.9,0.06450709]
[1720610996290,0.50604554,3100.6,3100.0,2.286]
[1720610996473,2.4776,3101.3,3100.1,2.35050127]
[1720610996816,1.05596046,3101.2,3100.1,2.35050127]
[1720610996995,0.50596046,3101.2,3100.2,0.23505013]
[1720610997191,0.50596046,3101.2,3100.3,2.4235]
[1720610998529,0.50596046,3101.2,3100.5,2.2994]
[1720610998923,0.50596046,3101.2,3100.6,0.05691419]
[1720610999137,0.50596046,3101.2,3100.6,0.12140735]
[1720611000351,0.50596046,3101.2,3100.7,2.33059059]
[1720611000506,2.3152,3102.3,3100.9,2.2661]
[1720611000706,0.20111875,3102.2,3100.9,2.2661]
[1720611000939,2.433,3101.8,3100.6,0.05691419]
[1720611001143,2.3152,3101.6,3100.6,0.05691419]
[1720611001428,0.20111875,3101.5,3100.6,0.05691419]
[1720611001639,0.25163188,3101.4,3100.6,0.05691419]
[1720611001826,0.55,3101.3,3100.6,0.05691419]
[1720611002441,0.25163188,3101.4,3100.6,0.05691419]
[1720611005327,0.55,3101.3,3100.6,0.05691419]
[1720611008469,3.0,3101.5,3100.7,2.4747]
[1720611008757,2.4574,3101.9,3100.7,2.72786142]
[1720611008960,0.20119983,3101.8,3100.7,2.4747]
[1720611009171,3.20119983,3101.8,3100.7,2.4747]
[1720611009323,0.20119983,3101.7,3100.7,2.4747]